Cogmind - Beta 15 @@@ ROGUE MODE // 2025.06.06 @ 17:07:50 Player: puppuppit Result: Destroyed by S-27 Virus with Autogun Performance ------------- Evolutions (5) 2500 Regions Visited (7) 1400 Robots Destroyed (100) 500 Value Destroyed (2522) 2522 Prototype IDs (25) 500 Alien Tech Used (0) 0 Bonus (2866) 2866 TOTAL SCORE: 10288 Bonus ------- Triggered High Security 500 High Alert Combat Kills 749 Follower Combat Kills 817 Registered with UFD 300 Met Optimus in HQ 500 Cogmind --------- Core Integrity 0/1000 Matter 159/300 Energy 91/100 System Corruption 3% Temperature Cool (0) Movement Core (50) Location -5/Upper Caves Parts ------- > --- POWER (1) -------- (None) > --- PROPULSION (5) --- (None) > --- UTILITY (7) ------ Improved Coolant Injector Advanced Terrain Scan Processor Target Analyzer Armor Integrity Analyzer Propulsion Shielding Authchip [Power] > --- WEAPON (4) ------- (None) > --- INVENTORY (5) ---- Enhanced Scrap Shield Large Botcube Peak State ------------ > --- POWER ------------ Light Angular Momentum Engine > --- PROPULSION ------- Airjet Gravmag System Improved Gravmag System Improved Gravmag System Antigrav System Antigrav System Linear Gravjet > --- UTILITY ---------- Advanced Cooling System Medium Storage Unit Target Analyzer Armor Integrity Analyzer Armor Integrity Analyzer Core Shielding Tower Shield System Shield > --- WEAPON ----------- Magnetic Acceleration Cannon Magnetic Acceleration Cannon Enhanced Gauss Cannon Enhanced Gauss Cannon > --- INVENTORY -------- Neutrino Core Improved Hover Unit Improved Coolant Injector Enhanced Gauss Cannon Smartbomb Launcher Vortex Trap DRS Beacon Large Botcube [Rating: 110] Favorites ----------- Power Improved Deuterium Engine Engine Improved Deuterium Engine Power Core Light Fission Core Propulsion Light Treads Treads Light Treads Wheel Wheel Hover Unit Airjet Flight Unit VTOL Module Utility Small Storage Unit Device Improved Terrain Scanner Storage Small Storage Unit Processor Target Analyzer Hackware System Shield Protection Propulsion Shielding Weapon Barrage Gun Energy Gun EM Pulse Gun Ballistic Gun Barrage Gun Ballistic Cannon Enhanced Gauss Cannon Launcher Smartbomb Launcher Special Weapon Plasma Cutter Build | -11 -10 -10 -10 -7 -7 -5 -5 ------- Run | Yrd Mat Min Sub Rec Scr Fac Upp Slots Evolved 10 | . . . . . . 10 . Power . | . . . . . . . . Propulsion 3 | . . . . . . 3 . Utility 5 | . . . . . . 5 . Weapon 2 | . . . . . . 2 . Parts Attached 97 | 7 4 1 8 7 15 50 5 Power 10 | 1 . 1 2 1 2 3 . Engine 9 | 1 . 1 2 1 2 2 . Core 1 | . . . . . . 1 . Reactor . | . . . . . . . . Propulsion 31 | 2 2 . 1 3 5 18 . Treads 8 | . 2 . 1 3 2 . . Leg . | . . . . . . . . Wheel 11 | 2 . . . . 2 7 . Hover 11 | . . . . . 1 10 . Flight 1 | . . . . . . 1 . Utility 34 | 2 1 . 3 2 5 17 4 Device 10 | 1 . . 1 . 1 6 1 Storage 4 | 1 . . . 1 2 . . Processor 8 | . . . . . 2 6 . Hackware 4 | . . . . . . 2 2 Protection 8 | . 1 . 2 1 . 3 1 Artifact . | . . . . . . . . Weapon 22 | 2 1 . 2 1 3 12 1 Energy Gun 1 | 1 . . . . . . . Energy Cannon . | . . . . . . . . Ballistic Gun 12 | 1 1 . 2 . 2 5 1 Ballistic Cannon 7 | . . . . 1 1 5 . Launcher 1 | . . . . . . 1 . Special Weapon 1 | . . . . . . 1 . Impact Weapon . | . . . . . . . . Slashing Weapon . | . . . . . . . . Piercing Weapon . | . . . . . . . . Special Melee Weapon . | . . . . . . . . Unidentified Prototypes 2 | . . . . . . 1 1 Parts Lost 30 | . . . 1 5 . 21 3 Power 3 | . . . 1 1 . 1 . Propulsion 15 | . . . . 2 . 13 . Utility 4 | . . . . 1 . 2 1 Weapon 8 | . . . . 1 . 5 2 Highest Loss Streak 9 | . . . 1 3 . 9 3 To Critical Strikes . | . . . . . . . . Average Backups 6 | 2 7 7 6 4 7 5 1 Power . | . . . . . . . . Propulsion 1 | 2 3 1 1 1 1 . . Utility 3 | . 3 4 3 2 3 1 1 Weapon 1 | . . 1 1 . 2 2 . Tool/Special . | . . . . . . . . Unused Backups 34 | . 1 2 6 1 12 12 . Power 2 | . . . . . . 2 . Propulsion 3 | . . 2 . 1 . . . Utility 21 | . 1 . 5 . 9 6 . Weapon 8 | . . . 1 . 3 4 . Tool/Special . | . . . . . . . . Average Slot Usage (%) 85 | . 100 100 98 90 86 75 37 Engine 8 | . 14 14 12 12 8 1 . Treads 17 | . 11 28 28 28 18 . . Wheel 2 | . 16 . . . 4 7 . Hover 2 | . . . . . 2 13 . Device 7 | . 5 11 12 6 4 4 5 Storage 10 | . 14 14 14 7 12 4 . Processor 6 | . . . . . 6 17 17 Protection 2 | . 8 2 1 6 1 1 4 Ballistic Gun 19 | . 19 28 28 19 19 7 . Ballistic Cannon 3 | . . . . 7 5 8 4 Peak Build Rating 110 | 9 10 11 19 19 30 110 37 Average Rating 24 | 6 8 9 14 17 21 57 29 On Entrance 13 | . 9 8 11 19 17 20 22 Naked Turns . | . . . . . . . . Heaviest Build 94 | 15 15 16 23 34 45 94 15 Greatest Support 68 | 26 40 40 40 40 42 68 3 Greatest Overweight (x) 4 | . . . . . 2 3 4 Average Overweight (x) . | . . . . . . . 2 Largest Inventory Capacity 15 | 8 8 8 8 8 15 10 5 Average Capacity 9 | 7 8 8 8 6 12 9 5 Most Carried 15 | 5 8 8 8 8 15 10 5 Average Carried 8 | 2 7 7 7 5 10 9 4 Final Capacity 10 | 8 8 8 8 5 10 10 5 Final Carried 10 | 5 7 8 8 4 10 8 4 Class Distribution -------------------- 85% | Mutant 7% | Gunner 4% | Scavenger-Gunner Dominant Class ---------------- Mutant | -10/Materials Mutant | -10/Mines Mutant | -10/Subcaves Mutant | -7/Recycling Mutant | -7/Scraptown Gunner | -5/Factory Mutant | -5/Upper Caves Resources | -11 -10 -10 -10 -7 -7 -5 -5 ----------- Run | Yrd Mat Min Sub Rec Scr Fac Upp Matter Collected 4134 | 347 57 105 326 453 180 2377 289 Remotely 26 | . . . . . . 26 . Salvage Created 4490 | 211 174 121 159 1043 . 2740 42 Parts 192 | 21 11 8 11 33 . 103 5 Haulers Intercepted 2 | . . . . . . 2 . Recyclers Shooed 13 | . . . . 3 . 10 . Parts Field Recycled . | . . . . . . . . Retrieved Matter . | . . . . . . . . Parts Self-Destructed 13 | . . . 9 . . . 4 Prevented . | . . . . . . . . Kills | -11 -10 -10 -10 -7 -7 -5 -5 ------- Run | Yrd Mat Min Sub Rec Scr Fac Upp Combat Hostiles Destroyed 44 | . 5 . 5 3 . 29 2 Melee 1 | . . . . . . 1 . Guns 17 | . 5 . 5 1 . 6 . Cannons 15 | . . . . 2 . 11 2 AOE 11 | . . . . . . 11 . Classes Destroyed 18 | 3 2 . 2 2 . 8 1 Worker 8 | 2 1 1 . . . 4 . Builder 7 | . . . . 2 . 5 . Tunneler 6 | 5 1 . . . . . . Hauler 2 | . . . . . . 2 . Recycler 24 | 1 . 1 . 12 . 10 . Minesweeper 1 | . . . . . . . 1 Operator 1 | . . . . . . 1 . Turret 1 | . . . 1 . . . . Watcher 2 | . . . . . . 2 . Swarmer 15 | . 3 . 2 . . 8 2 Saboteur 1 | . . . . . . 1 . Grunt 9 | . 2 . . . . 7 . Duelist 2 | . . . . . . 2 . Sentry 5 | . . . . 3 . 2 . Hunter 4 | . . . . . . 4 . Programmer 5 | . . . . . . 5 . Subdweller 3 | . . . 3 . . . . Scrapoid 4 | . . . . . . 4 . Best Kill Streak 17 | 5 3 1 2 12 . 17 2 Combat Bots Only 5 | . 3 . 2 2 . 5 2 Max Kills in Single Turn 3 | 1 1 1 1 1 . 3 1 Gunslinging . | . . . . . . . . Exploded 2 | . . . . . . 2 . Melee 1 | . . . . . . 1 . Uniques/NPCs Destroyed . | . . . . . . . . Combat | -11 -10 -10 -10 -7 -7 -5 -5 -------- Run | Yrd Mat Min Sub Rec Scr Fac Upp Hostile Shots Fired 432 | . 17 . 44 117 . 204 50 Missed 125 | . 2 . 17 39 . 49 18 Hits 307 | . 15 . 27 78 . 155 32 Melee 4 | . . . . . . 4 . Projectile 303 | . 15 . 27 78 . 151 32 AOE 2 | . . . 2 . . . . Critical Strikes 6 | . . . 1 . . 5 . Damage Taken 4782 | . 138 14 512 586 . 3048 484 Core 1243 | . 34 . 110 90 . 803 206 Absorbed by Shields . | . . . . . . . . Redirected to Shielding 15 | . 5 . . . . 10 . Core Remaining (%) 53 | 100 . . . . 6 . . Volleys Fired 252 | 14 20 10 35 40 . 116 17 Largest 4 | 2 2 2 2 2 . 4 1 Hottest 182 | 60 60 40 56 61 . 182 47 Shots Fired 575 | 28 40 20 66 80 . 322 19 Gun 347 | 28 40 20 66 57 . 131 5 Cannon 220 | . . . . 23 . 183 14 Launcher 8 | . . . . . . 8 . Special . | . . . . . . . . Kinetic 539 | 14 26 20 66 80 . 314 19 Thermal . | . . . . . . . . Explosive 8 | . . . . . . 8 . Electromagnetic 28 | 14 14 . . . . . . Robot Hit Streak 14 | 14 12 9 12 13 . 12 3 Robot Miss Streak 8 | 1 4 2 3 3 . 8 4 Penetration Max 1 | . . . . . . 1 . Secondary Targets 1 | . . . . . . 1 . Max Gunslinging Chain 1 | . . . . . . 1 . Shots Hit Robots 329 | 21 18 14 37 54 . 177 8 Core Hits 160 | 9 9 5 10 24 . 100 3 Critical Kills 5 | . . . 1 . . 4 . Critical Parts Destroyed 5 | . . . . . . 5 . Critical Strikes 29 | . 1 . 1 1 . 24 2 Destroy 10 | . . . 1 . . 9 . Blast 18 | . . . . 1 . 15 2 Corrupt 1 | . 1 . . . . . . Melee Attacks . | . . . . . . . . Impact . | . . . . . . . . Slashing . | . . . . . . . . Piercing . | . . . . . . . . Sneak Attacks . | . . . . . . . . Combat Hostiles . | . . . . . . . . Follow-up Attacks . | . . . . . . . . Damage Inflicted 10523 | 270 316 147 620 1060 . 7850 260 Guns 3792 | 270 221 147 620 660 . 1834 40 Cannons 4037 | . . . . 400 . 3417 220 Explosions 2694 | . 95 . . . . 2599 . Melee . | . . . . . . . . Ramming . | . . . . . . . . Kinetic 7557 | 95 124 147 620 1060 . 5251 260 Thermal 408 | . 95 . . . . 313 . Explosive 2286 | . . . . . . 2286 . Electromagnetic 272 | 175 97 . . . . . . Impact . | . . . . . . . . Slashing . | . . . . . . . . Piercing . | . . . . . . . . Highest Corruption 3 | . . . . . . 3 3 Average Corruption 2 | . . . . . . 2 3 Corruption Purged . | . . . . . . . . Corruption Blocked 3 | . . . . . . 3 . Effects 21 | . . . . . . 6 15 Message Errors 8 | . . . . . . 2 6 Matter Fused 6 | . . . . . . 2 4 Heat Flow Errors 2 | . . . . . . 1 1 Energy Discharges 1 | . . . . . . . 1 Data Loss (minor) 1 | . . . . . . . 1 Data Loss (major) 1 | . . . . . . 1 . Misfires 2 | . . . . . . . 2 Overload Shots . | . . . . . . . . Overflow Damage 218 | . 23 . . . . 186 9 Projectiles 108 | . . . . . . 99 9 Explosions 110 | . 23 . . . . 87 . Melee . | . . . . . . . . Knockbacks 22 | . . . . 3 . 19 . Impact . | . . . . . . . . Kinetic 21 | . . . . 2 . 19 . Secondary 1 | . . . . 1 . . . Self-Inflicted Damage 17 | . 13 . . . . 4 . Shots 2 | . 1 . . . . 1 . Rammed 1 | . . . . . . . 1 Targets Rammed 1 | . . . . . . . 1 Kicked . | . . . . . . . . Crushed . | . . . . . . . . Highest Temperature 302 | 20 21 2 302 230 . 240 198 Average Temperature 66 | 20 9 1 144 93 . 45 118 Received Heat Transfer 1456 | . 24 9 432 180 . 811 . Effects 1 | . . . . 1 . . . Energy Bleed 1 | . . . . 1 . . . Siege Activations . | . . . . . . . . Martial Activations . | . . . . . . . . Shielding Activations . | . . . . . . . . Robots Disrupted . | . . . . . . . . Combat Hostiles . | . . . . . . . . Robots Corrupted . | . . . . . . . . Combat Hostiles . | . . . . . . . . Parts Fried 2 | 2 . . . . . . . Impact Corruptions . | . . . . . . . . Robots Melted . | . . . . . . . . Combat Hostiles . | . . . . . . . . Parts Melted 4 | . . . 1 . . 3 . Heat Transferred 274 | . 100 . . . . 174 . Parts Sabotaged 7 | . . . . . . 7 . Parts Stolen . | . . . . . . . . Parts Stripped . | . . . . . . . . Power Chain Reactions 1 | . 1 . . . . . . Alert | -11 -10 -10 -10 -7 -7 -5 -5 ------- Run | Yrd Mat Min Sub Rec Scr Fac Upp Maximum Alert Level 5 | . . . . . . 5 . Low Security (%) 65 | 100 100 100 . 100 . 30 . Level 1 2 | . . . . . . 4 . Level 2 8 | . . . . . . 17 . Level 3 4 | . . . . . . 9 . Level 4 12 | . . . . . . 25 . Level 5 1 | . . . . . . 3 . High Security 4 | . . . . . . 8 . Max Security . | . . . . . . . . Peak Influence 1892 | 20 132 47 . 73 . 1892 . Initial 47 | . 3 47 . . . . . Average 406 | 5 59 4 . 31 . 797 . Influence Increases 3297 | 40 252 61 132 220 . 2537 55 Destroy 0b10 Robot/C 1320 | . 100 40 100 60 . 980 40 Destroy 0b10 Robot/NC 295 | 40 10 10 . 70 . 160 5 Destroy Leader 220 | . 20 . . . . 190 10 Allied During Kill 198 | . . 11 2 . . 185 . Trap Triggered on 0b10 10 | . . . . . . 10 . Successful Hack 60 | . 8 . . 10 . 42 . Select Force Hacks 90 | . 30 . . 60 . . . Disable Machine 285 | . 30 . . 15 . 240 . Destroy Structure 429 | . 24 . . 5 . 400 . Partial Spotted 60 | . . . . . . 60 . Lose Combat Pursuer 330 | . 30 . 30 . . 270 . Influence Decreases 2494 | 35 135 183 132 202 18 650 1139 Entered New Map 794 | . 2 75 . . 18 . 699 Time Decay 1368 | 35 133 88 112 190 . 400 410 Lost Part 252 | . . . . 12 . 210 30 Lost Ally 80 | . . 20 20 . . 40 . Squads Dispatched 29 | . 2 . . . . 27 . Investigation 10 | . 2 . . . . 8 . Extermination 3 | . . . . . . 3 . Reinforcement 7 | . . . . . . 7 . Assault 6 | . . . . . . 6 . Garrison 3 | . . . . . . 3 . Intercept . | . . . . . . . . Searches Triggered . | . . . . . . . . Construction Impeded 2 | . . . . . . 2 . Haulers Reinforced 3 | . . . . . . 3 . Active Scanning Responses . | . . . . . . . . Cargo Convoy Interrupts 1 | . . . . . . 1 . Stealth | -11 -10 -10 -10 -7 -7 -5 -5 --------- Run | Yrd Mat Min Sub Rec Scr Fac Upp Distress Signals 4 | . . . . . . 4 . Communications Jammed . | . . . . . . . . Distress Signals . | . . . . . . . . Times Spotted 117 | . 10 1 10 3 . 89 4 Peak Tracking Total 17 | . 3 2 5 2 . 17 4 Tactical Retreats 9 | . 2 . 2 . . 5 . Traps | -11 -10 -10 -10 -7 -7 -5 -5 ------- Run | Yrd Mat Min Sub Rec Scr Fac Upp Traps Triggered 4 | . 1 . 1 . . 2 . Indirectly . | . . . . . . . . Trap Hack Attempts . | . . . . . . . . Triggered . | . . . . . . . . Disarmed . | . . . . . . . . Reprogrammed . | . . . . . . . . Reused 1 | . . . . . . 1 . Traps Extracted . | . . . . . . . . Installed 1 | . . . . . . 1 . Triggered 1 | . . . . . . 1 . Most Traps Carried 1 | . . . . . 1 1 . Machines | -11 -10 -10 -10 -7 -7 -5 -5 ---------- Run | Yrd Mat Min Sub Rec Scr Fac Upp Machines Disabled 21 | . 2 . 2 1 . 16 . Max in Single Turn 3 | . 2 . 1 1 . 3 . Machines Repaired . | . . . . . . . . Machines Dismantled . | . . . . . . . . Machines Sabotaged . | . . . . . . . . Overloaded Fab Kills . | . . . . . . . . Hacking | -11 -10 -10 -10 -7 -7 -5 -5 --------- Run | Yrd Mat Min Sub Rec Scr Fac Upp Machines Accessed 33 | . 5 . 1 7 4 16 . Terminals 15 | . 4 . . 4 . 7 . Fabricators 2 | . . . . . . 2 . Repair Stations 1 | . . . . . . 1 . Recycling Units 10 | . 1 . . 3 . 6 . Scanalyzers . | . . . . . . . . Garrison Access . | . . . . . . . . Total Hacks 93 | . 12 . 1 17 24 39 . Successful 50 | . 6 . 1 5 24 14 . Failed 43 | . 6 . . 12 . 25 . Catastrophic 6 | . . . . 2 . 4 . Database Lockouts . | . . . . . . . . Manual 43 | . 11 . . 5 1 26 . Terminals 46 | . 11 . . 14 . 21 . Fabricators 2 | . . . . . . 2 . Repair Stations 4 | . . . . . . 4 . Recycling Units 16 | . 1 . . 3 . 12 . Scanalyzers . | . . . . . . . . Garrison Access . | . . . . . . . . Terminal Hacks 30 | . 1 . 1 3 24 1 . Record 17 | . . . . . 17 . . Robot Analysis 6 | . . . . . 6 . . Prototype ID Bank 3 | . 1 . . 2 . . . Terminal Index 2 | . . . . 1 . 1 . Proto ID Catalog 2 | . . . 1 . 1 . . Fabricator Hacks 1 | . . . . . . 1 . Network Status 1 | . . . . . . 1 . Repair Station Hacks . | . . . . . . . . Recycling Unit Hacks . | . . . . . . . . Scanalyzer . | . . . . . . . . Garrison Access Hacks . | . . . . . . . . Unauthorized Hacks 19 | . 5 . . 2 . 12 . Terminals 11 | . 4 . . . . 7 . Botnet 11 | . 4 . . . . 7 . Fabricators . | . . . . . . . . Repair Stations . | . . . . . . . . Recycling Units 8 | . 1 . . 2 . 5 . Tunnel 3 | . 1 . . 2 . . . Fedlink 4 | . . . . . . 4 . Scrapoids 1 | . . . . . . 1 . Scanalyzers . | . . . . . . . . Garrison Access . | . . . . . . . . Data Cores Recovered . | . . . . . . . . Used . | . . . . . . . . Hacking Detections 20 | . 4 . . 5 . 11 . Full Trace Events 9 | . 2 . . 4 . 3 . Feedback Events 1 | . . . . . . 1 . Hackware Fried 1 | . . . . . . 1 . Feedback Blocked . | . . . . . . . . Robot Schematics Acquired . | . . . . . . . . Robots Built . | . . . . . . . . Authchips . | . . . . . . . . Time . | . . . . . . . . Total Robot Build Rating . | . . . . . . . . Part Schematics Acquired . | . . . . . . . . Parts Built . | . . . . . . . . Authchips . | . . . . . . . . Time . | . . . . . . . . Total Part Build Rating . | . . . . . . . . Parts Repaired . | . . . . . . . . Time . | . . . . . . . . Parts Recycled . | . . . . . . . . Recycled Matter . | . . . . . . . . Retrieved Matter . | . . . . . . . . Retrieved Components . | . . . . . . . . Parts Scanalyzed . | . . . . . . . . Part Schematics Acquired . | . . . . . . . . Parts Damaged . | . . . . . . . . Bothacking | -11 -10 -10 -10 -7 -7 -5 -5 ------------ Run | Yrd Mat Min Sub Rec Scr Fac Upp Used RIF Installer . | . . . . . . . . Robots Hacked . | . . . . . . . . Non-combat . | . . . . . . . . Combat . | . . . . . . . . Robot Hacks Applied . | . . . . . . . . Relay Couplers Released . | . . . . . . . . Fabnet Peak Effective % . | . . . . . . . . Robots Rewired . | . . . . . . . . Allies Hacked . | . . . . . . . . Hacks Repelled . | . . . . . . . . Allies | -11 -10 -10 -10 -7 -7 -5 -5 -------- Run | Yrd Mat Min Sub Rec Scr Fac Upp Total Allies 11 | . . 5 . . 1 5 . Largest Group 6 | . . 5 4 . 1 6 . Highest-Rated Group 308 | . . 85 81 . 78 308 . Highest-Rated Ally 78 | . . 31 31 . 78 78 . Total Orders 3 | . . . . . 2 1 . STAY 1 | . . . . . 1 . . FOLLOW 1 | . . . . . . 1 . EXPLORE 1 | . . . . . 1 . . Ally Attacks 140 | . . 8 13 . . 119 . Total Damage 3641 | . . 90 206 . . 3345 . Kills 33 | . . 2 3 . . 28 . Allies Corrupted . | . . . . . . . . Allies Melted . | . . . . . . . . Intel | -11 -10 -10 -10 -7 -7 -5 -5 ------- Run | Yrd Mat Min Sub Rec Scr Fac Upp Active Infowar (turns) 5483 | 31 113 755 3082 226 28 1248 . Optics 1620 | . . . 118 226 28 1248 . Terrain 3863 | 31 113 755 2964 . . . . Robot Analysis Total 6 | . . . . . 6 . . Derelict Logs Recovered 4 | . . 1 1 . 1 . 1 Drone Launches 2 | . . . . . 2 . . Drone Recoveries . | . . . . . . . . Exploration | -11 -10 -10 -10 -7 -7 -5 -5 ------------- Run | Yrd Mat Min Sub Rec Scr Fac Upp Turns Passed 11262 | 132 290 899 3355 483 3340 1783 980 Spaces Moved 6841 | 83 184 539 1853 222 2021 1465 474 Core 544 | 1 . . . . . 69 474 Treads 3906 | . 60 539 1853 222 1232 . . Legs . | . . . . . . . . Wheels 1487 | 82 124 . . . 639 642 . Hover 904 | . . . . . 150 754 . Flight . | . . . . . . . . Fastest Speed 40 | 50 90 160 160 160 85 40 50 Average Speed 142 | 90 112 160 160 160 156 82 195 Slowest Speed 250 | 100 160 160 160 160 245 200 250 Overloaded Moves . | . . . . . . . . Propulsion Burnouts . | . . . . . . . . Robots Hopped . | . . . . . . . . Potential Cave-ins . | . . . . . . . . Cave-ins Triggered . | . . . . . . . . Exploration Rate (%) 55 | 5 38 77 90 70 95 29 43 Regions Visited 7 Branch Regions 5 Pre-discovered Areas 5 | . 1 . 1 2 . 1 . Known Exits Taken 1 | . . . . . . 1 . Unknown Exits Taken 6 | 1 1 1 1 1 1 . . Scrap Searched 7 | . . 1 . . 5 . 1 Spaces Dug 6 | . . . . . . 6 . Terrain Destroyed 278 | . 23 . . 3 . 242 10 Melee . | . . . . . . . . Projectile 75 | . . . . 3 . 62 10 AOE 203 | . 23 . . . . 180 . Terrain Rammed . | . . . . . . . . Walls Destroyed . | . . . . . . . . Machines Disabled . | . . . . . . . . Actions | -11 -10 -10 -10 -7 -7 -5 -5 --------- Run | Yrd Mat Min Sub Rec Scr Fac Upp Total 7872 | 108 230 560 2187 274 2201 1804 508 Wait 427 | . 7 3 264 1 85 64 3 Move 6834 | 82 183 538 1852 221 2020 1464 474 Hop . | . . . . . . . . Pick Up 78 | 5 9 3 10 1 34 15 1 Fast Attach 54 | 7 . . 1 1 8 34 3 Attach 42 | . . . . 4 1 33 4 Detach 32 | . . . . . 6 24 2 Swap 52 | . 4 2 11 4 9 22 . Drop 95 | . 7 4 14 2 35 31 2 Fire 252 | 14 20 10 35 40 . 116 17 Melee . | . . . . . . . . Ram 1 | . . . . . . . 1 Kick . | . . . . . . . . Crush . | . . . . . . . . Escape Stasis . | . . . . . . . . Rewire 3 | . . . . . 3 . . Trap 1 | . . . . . . 1 . Miscellaneous 1 | . . . . . . . 1 Route ------- -11/Scrapyard -10/Materials -10/Mines (discovered 3 exits: [*Mat] / [*Exi] / *Sub) -10/Subcaves (discovered 3 exits: [*Mat x2] / *Rec) -7/Recycling -7/Scraptown (discovered 2 exits: *Fac x2) -5/Factory (discovered 2 exits: [*Fac] / *Upp) -5/Upper Caves History --------- Turn | Location | Event 10 | -11/Scrapyard | Discovered new exit (range 16) 133 | -11/Scrapyard | Entered Materials 329 | -10/Materials | Build established: Mutant 351 | -10/Materials | Discovered new exit (range 15) 423 | -10/Materials | Entered Mines 617 | -10/Mines | Deemed a non-threat by the Exiles lab entrance 617 | -10/Mines | Discovered new exit (range 5) 657 | -10/Mines | Found a Scrap Suit stashed away for nefarious purposes 661 | -10/Mines | Found Scrap Suit 924 | -10/Mines | Discovered new exit (range 8) 1090 | -10/Mines | Assisted by bots powering up and referring to "LRC-V3" 1155 | -10/Mines | Discovered new exit (range 15) 1322 | -10/Mines | Entered Subcaves 1322 | -10/Subcaves | Accompanied by 4 allies 1326 | -10/Subcaves | Learned 2 Materials zone layouts 1327 | -10/Subcaves | Led the pair of lost Derelicts to an unsafe place 1433 | -10/Subcaves | Discovered new exit (range 15) 1438 | -10/Subcaves | Shifting Twisted Machinery released Mak. Power Source 1566 | -10/Subcaves | A swath of the cavern ceiling suddenly collapsed 1597 | -10/Subcaves | Lost 3 allies 1944 | -10/Subcaves | Shifting Twisted Machinery released Barrage Gun 2123 | -10/Subcaves | Shifting Twisted Machinery released Scrap Shield 2821 | -10/Subcaves | Learned location of Zion (-7) 2821 | -10/Subcaves | Met a Zionite searching for "candidates" 3184 | -10/Subcaves | Discovered new exit (range 16) 3237 | -10/Subcaves | A swath of the cavern ceiling suddenly collapsed 4128 | -10/Subcaves | Shifting Twisted Machinery released Battle Cannon 4150 | -10/Subcaves | Visited 4L-MR0's lab 4167 | -10/Subcaves | Found Tower Shield 4408 | -10/Subcaves | Discovered new exit (range 12) 4547 | -10/Subcaves | Core integrity fell below 50% 4677 | -10/Subcaves | Entered Recycling 4788 | -7/Recycling | Lost 3 parts (1p2n) 4900 | -7/Recycling | Core integrity fell below 20% 5121 | -7/Recycling | Scanned before Scraplab entrance 5144 | -7/Recycling | Entered Scraplab 5157 | -7/Recycling | Discovered new exit (range 3) 5160 | -7/Recycling | Entered Scraptown 5285 | -7/Scraptown | Scanned Subdweller tech in exchange for log data 5375 | -7/Scraptown | Visited UFD Registry 5375 | -7/Scraptown | Registered with UFD as "Monobank" 5506 | -7/Scraptown | Delivered Scrap Shield to a Scientist 5620 | -7/Scraptown | Visited Junk Repository 5695 | -7/Scraptown | Visited Junk Repository 5844 | -7/Scraptown | Visited Derelict Rescue Squad 5859 | -7/Scraptown | Found DRS Beacon 5871 | -7/Scraptown | Discovered new exit (range 35) 5900 | -7/Scraptown | Visited Analyses Database 6052 | -7/Scraptown | Received an X-ray algorithm 6053 | -7/Scraptown | Discovered new exit (range 73) 6107 | -7/Scraptown | Ran an X-ray algorithm 6364 | -7/Scraptown | Visited Science Guys 6537 | -7/Scraptown | Visited Symbiants 6590 | -7/Scraptown | Visited Cave Peace 7268 | -7/Scraptown | Visited Botcube Research 7309 | -7/Scraptown | Found Lrg. Botcube 7449 | -7/Scraptown | Found Scrap Suit 7452 | -7/Scraptown | Found Scrap Suit 8160 | -7/Scraptown | Lrg. Botcube activated 8196 | -7/Scraptown | Lrg. Botcube completed mutation into treaded form, armed with 4 cannons. 8455 | -7/Scraptown | Met Optimus 8455 | -7/Scraptown | Accepted into 0bPrime 8500 | -7/Scraptown | Entered Factory 8500 | -5/Factory | Accompanied by 1 ally 8500 | -5/Factory | Evolved 10 slots: Propulsion x3, Utility x5, Weapon x2 8590 | -5/Factory | Loaded intel: 8 recycling unit locations 8694 | -5/Factory | Discovered new exit (range 8) 8702 | -5/Factory | Identified exit to Upper Caves 8805 | -5/Factory | Learned location of Protoforge (-2) 8817 | -5/Factory | Build established: Gunner 8877 | -5/Factory | Garrison activated, responded to threat 8902 | -5/Factory | Imp. Hacking Suite fried by hacking feedback 8933 | -5/Factory | Lost 3 parts (1n1u1w) 9400 | -5/Factory | First assault squad dispatched 9433 | -5/Factory | Scrapoid reinforcements arrived 9445 | -5/Factory | Build established: Scavenger-Gunner 9667 | -5/Factory | Found Lrg. Botcube 9772 | -5/Factory | Attached Tower Shield, gained temporary slots: Power, Propulsion x2, Utility x2, Weapon x2 10038 | -5/Factory | Lost 9 parts (1p6n1u1w) 10074 | -5/Factory | Discovered new exit (range 3) 10128 | -5/Factory | Core integrity fell below 50% 10134 | -5/Factory | High security lockdown imminent 10164 | -5/Factory | Lost 5 parts (2n3w) 10214 | -5/Factory | High security lockdown engaged 10262 | -5/Factory | Cargo convoy interrupted 10263 | -5/Factory | Core integrity fell below 20% 10283 | -5/Factory | Entered Upper Caves 10285 | -5/Upper Caves | UFD Scientist delivered a prototype 10289 | -5/Upper Caves | Found Prototype Protection 10307 | -5/Upper Caves | Build established: Mutant 11225 | -5/Upper Caves | Activated DRS Beacon 11250 | -5/Upper Caves | Identified Enh. Scrap Shield 11263 | -5/Upper Caves | Destroyed by S-27 Virus with Autogun Last Messages --------------- Gauss Cannon. 11194_ System corrupted: Enh. Gauss Cannon misfires. 11223_ System corrupted: FCS attempts to trigger Enh. Gauss Cannon. 11223_ System corrupted: Enh. Gauss Cannon misfires. 11224_ Dropped DRS Beacon. 11225_ DRS Beacon begins transmitting. DRS Beacon narrowcast message: "Please hold, a Derelict Rescue Squad will be with you shortly." 11235_ Hacking Suite destroyed. 11235_ Slug penetrates S-27 Virus. 11235_ S-27 Virus destroyed. 11238_ Enh. Gauss Cannon destroyed. 11239_ Acquired 17 matter. 11241_ Lgt. Nuclear Core fries itself beyond repair. 11241_ Acquired Autogun. 11250_ Identified Enh. Scrap Shield. 11252_ Autogun fries itself beyond repair. 11252_ Autogun destroyed. 11255_ Slammed into S-27 Virus. Map ----- +----------------------------------------------------+ | ?????????????????????????????????????????????????? | | ?????????????????????????????????????????????????? | | ?????????????????????????????????????????????????? | | ?????????????????????????????????????????????????? | | ?????????????????????????????????????????????????? | | ?????????????????????????????????????????????????? | | ?????????????????????????????????????????????????? | | ?????????????????????????????????????????????????? | | ?????????????????????????????????????????????????? | | ?????????????????????????????????????????????????? | | ?????????????????????????????????????????????????? | | ?????????????????????????????????????????????????? | | ?????????????????? ??????????????????????????????? | | ????????????????# ?????????????????????????????? | | ????????????????? ?????????????????????????????? | | ?????????????????? ????????????????????????????? | | ?????????????????? ????????????????????????????? | | ??????????????????? ???????????????????????????? | | ???????????????????? ???????????????????????????? | | ????????????????????# ??????????????????????????? | | ???????????????????## ??????????????????????????? | | ??????????????###### ?????????????????????????? | | ??????????????# ?????????????????????????? | | ??????????????# ????????????????????????? | | ??????????????# ###?????????????????????? | | ??????????????# @;#####?????????????????? | | ???????????????# ## #?????????????????? | | ???????????????## #??????????????????? | | ????????????????######## #######??? ?????????? | | ???????????????????????## ### #??? #????????? | | ????????????????????????## %s## #??? #????????? | | ????????????????????????#" s #??? ###??????? | | ????????????????????????## % ##?# #??????? | | ???????????????????????## % ## #??????? | | ???????????????????????# ;##% #???????? | | ???????????????#####???# ### ## ##???????? | | ??????????????## #???# ;## ## ##???????? | | ??????????????# ##??# #???????? | | ??????????????# ##?# #??????? | | ??????????????# ### #### #??????? | | ??????????????# ### ##??# ####??????? | | ??????????????##### #### #???# ###???????? | | ??????????????????## ##### *##### ####????? | | ???????????????????# ##?###! ## #????? | | ???????????????????# ###?#!!* #????? | | ???????????????????# ### ! ! ##### #????? | | ???????????????????# ! ##???# #????? | | ???????????????????# ## ### #####?# ????? | | ???????????????????# #####?# #### ## ???? | | ???????????????????## #??#### ### ??? | +----------------------------------------------------+ Best States ------------- Heat Dissipation 71 Coolant Potential 80 Energy Generation 18 Energy Capacity 290 Matter Stores 300 Matter Capacity 300 Sight Range 22 Terrain Scan Range 16 Terrain Scan Density 210 Corruption Block 15 Armor Coverage 2000 Core Shielding 20 Propulsion Shielding 33 Weapon Shielding 33 Evasion (%) 57 Target Analysis 5 Armor Integrity Analysis 30 Recoil Reduction 2 Energy Filtering 50 Kinecelleration 30 Offensive Hacking 12 Defensive Hacking 10 Authchip Count 1 Item Schematics ----------------- None Robot Schematics ------------------ None Fabricated ------------ Nothing Repaired ---------- Nothing Alien Tech Used ----------------- None Achievements -------------- None Challenges ------------ None Game ------ Seed MatterMolecularNetwork Manual? 0 Play Time 01:12:48 Cumulative 256.0 hours Start 2025.06.06 @ 15:54:54 End 2025.06.06 @ 17:07:50 Sessions 1 Manual Loads 0 Difficulty Rogue Special Mode None Game No. 156 Rogue 156 Adventurer 0 Explorer 0 Win Type - Total 3 Types 1/0/1/1/0/0/0/0/0/0 Lore% 79 Gallery% 66 Achievement% 63 Wizard Run 0 Options --------- Layout 2 ASCII 0 Keyboard 1 Movement Vi Keybinds 0 Fullscreen 1 Font 16/Tamsyn Map View 55x47 Zoom Use 0% Tactical HUD 1 Map Filters NONE Filters NONE Steam 0 RUN: e6aaf994-b624-458a-824e-1c046b38a45d